Workbook

Sheet 开始
B1: 关于模板
B2: 使用此模板来维持月度预算和年度预算。
B3: 在相应的表中输入收入和支出来计算每个月和每年的现金短缺或盈余。
B4: 迷你图会在每个表中自动更新。
B5: 注意：
B6: “个人预算”工作表的 A 列中提供了附加说明。并且此文本已被有意隐藏。若要删除文本，请选择 A 列，然后选择“删除”。若要取消隐藏文本，请选择 A 列，然后更改字体颜色。
B7: 若要了解有关表格的详细信息，请在表格内按 Shift + F10，选择“表格”选项，然后选择“替换文本”。

Sheet 个人预算
A1: 在此工作表中创建简单的个人预算。有关如何使用此工作表的有用说明位于此列的单元格中。向下移动箭头以开始了解。
A2: 此工作表的标题位于右侧单元格中。在单元格 Q2 中输入年份。下一条指示位于单元格 A4 中。 | B2: 个人预算 | Q2: =YEAR(TODAY()) -> 2019
A4: 标签位于单元格 C4 至 P4 中。 | C4: 收入 | D4: 1 月 | E4: 2 月 | F4: 3 月 | G4: 4 月 | H4: 5 月 | I4: 6 月 | J4: 7 月 | K4: 8 月 | L4: 9 月 | M4: 10 月 | N4: 11 月 | O4: 12 月 | P4: 年份
A5: 从收益表的单元格 C5 开始输入详细信息。下一条指示位于单元格 A11 中。 | C5: 收益 | D5: 1 月 | E5: 2 月 | F5: 3 月 | G5: 4 月 | H5: 5 月 | I5: 6 月 | J5: 7 月 | K5: 8 月 | L5: 9 月 | M5: 10 月 | N5: 11 月 | O5: 12 月 | P5: 年份 | Q5: 迷你图
C6: 工资 | D6: ¥2,600.00 | E6: ¥2,600.00 | F6: ¥2,600.00 | P6: =SUM(收益[[#This Row],[1 月]:[12 月]]) -> ¥7,800.00
C7: 利息/股息 | D7: ¥649.00 | E7: ¥313.00 | F7: ¥664.00 | P7: =SUM(收益[[#This Row],[1 月]:[12 月]]) -> ¥1,626.00
C8: 杂项 | D8: ¥474.00 | E8: ¥643.00 | F8: ¥380.00 | P8: =SUM(收益[[#This Row],[1 月]:[12 月]]) -> ¥1,497.00
C9: 汇总 | D9: =SUBTOTAL(109,收益[1 月]) -> ¥3,723.00 | E9: =SUBTOTAL(109,收益[2 月]) -> ¥3,556.00 | F9: =SUBTOTAL(109,收益[3 月]) -> ¥3,644.00 | G9: =SUBTOTAL(109,收益[4 月]) -> ¥0.00 | H9: =SUBTOTAL(109,收益[5 月]) -> ¥0.00 | I9: =SUBTOTAL(109,收益[6 月]) -> ¥0.00 | J9: =SUBTOTAL(109,收益[7 月]) -> ¥0.00 | K9: =SUBTOTAL(109,收益[8 月]) -> ¥0.00 | L9: =SUBTOTAL(109,收益[9 月]) -> ¥0.00 | M9: =SUBTOTAL(109,收益[10 月]) -> ¥0.00 | N9: =SUBTOTAL(109,收益[11 月]) -> ¥0.00 | O9: =SUBTOTAL(109,收益[12 月]) -> ¥0.00 | P9: =SUBTOTAL(109,收益[年份]) -> ¥10,923.00
A11: 标签位于单元格 C11 至 P11 中。 | C11: 支出 | D11: 1 月 | E11: 2 月 | F11: 3 月 | G11: 4 月 | H11: 5 月 | I11: 6 月 | J11: 7 月 | K11: 8 月 | L11: 9 月 | M11: 10 月 | N11: 11 月 | O11: 12 月 | P11: 年份
A12: 从表的单元格 C12 开始输入家庭支出。下一条指示位于单元格 A20 中。 | C12: 住宅 | D12: 1 月 | E12: 2 月 | F12: 3 月 | G12: 4 月 | H12: 5 月 | I12: 6 月 | J12: 7 月 | K12: 8 月 | L12: 9 月 | M12: 10 月 | N12: 11 月 | O12: 12 月 | P12: 年份 | Q12: 迷你图
C13: 抵押贷款 | D13: ¥750.00 | E13: ¥750.00 | F13: ¥750.00 | P13: =SUM(家庭[[#This Row],[1 月]:[12 月]]) -> ¥2,250.00
C14: 保险 | P14: =SUM(家庭[[#This Row],[1 月]:[12 月]]) -> ¥0.00
C15: 维修 | F15: ¥75.00 | P15: =SUM(家庭[[#This Row],[1 月]:[12 月]]) -> ¥75.00
C16: 服务 | D16: ¥35.00 | E16: ¥35.00 | F16: ¥35.00 | P16: =SUM(家庭[[#This Row],[1 月]:[12 月]]) -> ¥105.00
C17: 水电费 | D17: ¥165.00 | E17: ¥165.00 | F17: ¥165.00 | P17: =SUM(家庭[[#This Row],[1 月]:[12 月]]) -> ¥495.00
C18: 汇总 | D18: =SUBTOTAL(109,家庭[1 月]) -> ¥950.00 | E18: =SUBTOTAL(109,家庭[2 月]) -> ¥950.00 | F18: =SUBTOTAL(109,家庭[3 月]) -> ¥1,025.00 | G18: =SUBTOTAL(109,家庭[4 月]) -> ¥0.00 | H18: =SUBTOTAL(109,家庭[5 月]) -> ¥0.00 | I18: =SUBTOTAL(109,家庭[6 月]) -> ¥0.00 | J18: =SUBTOTAL(109,家庭[7 月]) -> ¥0.00 | K18: =SUBTOTAL(109,家庭[8 月]) -> ¥0.00 | L18: =SUBTOTAL(109,家庭[9 月]) -> ¥0.00 | M18: =SUBTOTAL(109,家庭[10 月]) -> ¥0.00 | N18: =SUBTOTAL(109,家庭[11 月]) -> ¥0.00 | O18: =SUBTOTAL(109,家庭[12 月]) -> ¥0.00 | P18: =SUBTOTAL(109,家庭[年份]) -> ¥2,925.00
A20: 从表的单元格 C20 开始输入每日支出。下一条指示位于单元格 A29 中。 | C20: 日常生活 | D20: 1 月 | E20: 2 月 | F20: 3 月 | G20: 4 月 | H20: 5 月 | I20: 6 月 | J20: 7 月 | K20: 8 月 | L20: 9 月 | M20: 10 月 | N20: 11 月 | O20: 12 月 | P20: 年份 | Q20: 迷你图
C21: 日用杂货 | D21: ¥191.00 | E21: ¥152.00 | F21: ¥145.00 | P21: =SUM(日常[[#This Row],[1 月]:[12 月]]) -> ¥488.00
C22: 儿童保育 | D22: ¥200.00 | E22: ¥200.00 | F22: ¥200.00 | P22: =SUM(日常[[#This Row],[1 月]:[12 月]]) -> ¥600.00
C23: 干洗 | D23: ¥20.00 | F23: ¥20.00 | P23: =SUM(日常[[#This Row],[1 月]:[12 月]]) -> ¥40.00
C24: 外出就餐 | D24: ¥55.00 | F24: ¥56.00 | P24: =SUM(日常[[#This Row],[1 月]:[12 月]]) -> ¥111.00
C25: 房屋清扫服务 | D25: ¥25.00 | E25: ¥17.00 | F25: ¥7.00 | P25: =SUM(日常[[#This Row],[1 月]:[12 月]]) -> ¥49.00
C26: 遛狗 | D26: ¥10.00 | E26: ¥5.00 | F26: ¥7.00 | P26: =SUM(日常[[#This Row],[1 月]:[12 月]]) -> ¥22.00
C27: 汇总 | D27: =SUBTOTAL(109,日常[1 月]) -> ¥501.00 | E27: =SUBTOTAL(109,日常[2 月]) -> ¥374.00 | F27: =SUBTOTAL(109,日常[3 月]) -> ¥435.00 | G27: =SUBTOTAL(109,日常[4 月]) -> ¥0.00 | H27: =SUBTOTAL(109,日常[5 月]) -> ¥0.00 | I27: =SUBTOTAL(109,日常[6 月]) -> ¥0.00 | J27: =SUBTOTAL(109,日常[7 月]) -> ¥0.00 | K27: =SUBTOTAL(109,日常[8 月]) -> ¥0.00 | L27: =SUBTOTAL(109,日常[9 月]) -> ¥0.00 | M27: =SUBTOTAL(109,日常[10 月]) -> ¥0.00 | N27: =SUBTOTAL(109,日常[11 月]) -> ¥0.00 | O27: =SUBTOTAL(109,日常[12 月]) -> ¥0.00 | P27: =SUBTOTAL(109,日常[年份]) -> ¥1,310.00
A29: 从表的单元格 C29 开始输入交通支出。下一条说明位于单元格 A38 中。 | C29: 交通 | D29: 1 月 | E29: 2 月 | F29: 3 月 | G29: 4 月 | H29: 5 月 | I29: 6 月 | J29: 7 月 | K29: 8 月 | L29: 9 月 | M29: 10 月 | N29: 11 月 | O29: 12 月 | P29: 年份 | Q29: 迷你图
C30: 燃气/燃油 | D30: ¥195.00 | E30: ¥125.00 | F30: ¥171.00 | P30: =SUM(交通[[#This Row],[1 月]:[12 月]]) -> ¥491.00
C31: 保险 | D31: ¥165.00 | E31: ¥165.00 | F31: ¥165.00 | P31: =SUM(交通[[#This Row],[1 月]:[12 月]]) -> ¥495.00
C32: 修理费 | P32: =SUM(交通[[#This Row],[1 月]:[12 月]]) -> ¥0.00
C33: 洗车/汽车美容服务 | D33: ¥10.00 | P33: =SUM(交通[[#This Row],[1 月]:[12 月]]) -> ¥10.00
C34: 停车费 | D34: ¥10.00 | E34: ¥40.00 | F34: ¥20.00 | P34: =SUM(交通[[#This Row],[1 月]:[12 月]]) -> ¥70.00
C35: 公共交通费 | D35: ¥20.00 | E35: ¥40.00 | F35: ¥30.00 | P35: =SUM(交通[[#This Row],[1 月]:[12 月]]) -> ¥90.00
C36: 汇总 | D36: =SUBTOTAL(109,交通[1 月]) -> ¥400.00 | E36: =SUBTOTAL(109,交通[2 月]) -> ¥370.00 | F36: =SUBTOTAL(109,交通[3 月]) -> ¥386.00 | G36: =SUBTOTAL(109,交通[4 月]) -> ¥0.00 | H36: =SUBTOTAL(109,交通[5 月]) -> ¥0.00 | I36: =SUBTOTAL(109,交通[6 月]) -> ¥0.00 | J36: =SUBTOTAL(109,交通[7 月]) -> ¥0.00 | K36: =SUBTOTAL(109,交通[8 月]) -> ¥0.00 | L36: =SUBTOTAL(109,交通[9 月]) -> ¥0.00 | M36: =SUBTOTAL(109,交通[10 月]) -> ¥0.00 | N36: =SUBTOTAL(109,交通[11 月]) -> ¥0.00 | O36: =SUBTOTAL(109,交通[12 月]) -> ¥0.00 | P36: =SUBTOTAL(109,交通[年份]) -> ¥1,156.00
A38: 从表的单元格 C38 开始输入娱乐支出。下一条指示位于单元格 A45 中。 | C38: 娱乐 | D38: 1 月 | E38: 2 月 | F38: 3 月 | G38: 4 月 | H38: 5 月 | I38: 6 月 | J38: 7 月 | K38: 8 月 | L38: 9 月 | M38: 10 月 | N38: 11 月 | O38: 12 月 | P38: 年份 | Q38: 迷你图
C39: 有线电视 | D39: ¥85.00 | E39: ¥85.00 | F39: ¥85.00 | P39: =SUM(娱乐[[#This Row],[1 月]:[12 月]]) -> ¥255.00
C40: 录像/DVD 租赁 | D40: ¥7.00 | E40: ¥8.00 | F40: ¥9.00 | P40: =SUM(娱乐[[#This Row],[1 月]:[12 月]]) -> ¥24.00
C41: 电影/戏剧 | D41: ¥9.00 | E41: ¥5.00 | F41: ¥9.00 | P41: =SUM(娱乐[[#This Row],[1 月]:[12 月]]) -> ¥23.00
C42: 音乐会/俱乐部 | D42: ¥5.00 | E42: ¥5.00 | F42: ¥7.00 | P42: =SUM(娱乐[[#This Row],[1 月]:[12 月]]) -> ¥17.00
C43: 汇总 | D43: =SUBTOTAL(109,娱乐[1 月]) -> ¥106.00 | E43: =SUBTOTAL(109,娱乐[2 月]) -> ¥103.00 | F43: =SUBTOTAL(109,娱乐[3 月]) -> ¥110.00 | G43: =SUBTOTAL(109,娱乐[4 月]) -> ¥0.00 | H43: =SUBTOTAL(109,娱乐[5 月]) -> ¥0.00 | I43: =SUBTOTAL(109,娱乐[6 月]) -> ¥0.00 | J43: =SUBTOTAL(109,娱乐[7 月]) -> ¥0.00 | K43: =SUBTOTAL(109,娱乐[8 月]) -> ¥0.00 | L43: =SUBTOTAL(109,娱乐[9 月]) -> ¥0.00 | M43: =SUBTOTAL(109,娱乐[10 月]) -> ¥0.00 | N43: =SUBTOTAL(109,娱乐[11 月]) -> ¥0.00 | O43: =SUBTOTAL(109,娱乐[12 月]) -> ¥0.00 | P43: =SUBTOTAL(109,娱乐[年份]) -> ¥319.00
A45: 从表的单元格 C45 开始输入保健支出。下一条指示位于单元格 A55 中。 | C45: 保健 | D45: 1 月 | E45: 2 月 | F45: 3 月 | G45: 4 月 | H45: 5 月 | I45: 6 月 | J45: 7 月 | K45: 8 月 | L45: 9 月 | M45: 10 月 | N45: 11 月 | O45: 12 月 | P45: 年份 | Q45: 迷你图
C46: 健身俱乐部会费 | D46: ¥50.00 | E46: ¥50.00 | F46: ¥50.00 | P46: =SUM(保健[[#This Row],[1 月]:[12 月]]) -> ¥150.00
C47: 保险 | D47: ¥225.00 | E47: ¥225.00 | F47: ¥225.00 | P47: =SUM(保健[[#This Row],[1 月]:[12 月]]) -> ¥675.00
C48: 处方药费用 | D48: ¥100.00 | E48: ¥100.00 | F48: ¥100.00 | P48: =SUM(保健[[#This Row],[1 月]:[12 月]]) -> ¥300.00
C49: 非处方药费用 | D49: ¥6.00 | E49: ¥2.00 | F49: ¥9.00 | P49: =SUM(保健[[#This Row],[1 月]:[12 月]]) -> ¥17.00
C50: 共同支付/现款支付 | D50: ¥20.00 | F50: ¥41.00 | P50: =SUM(保健[[#This Row],[1 月]:[12 月]]) -> ¥61.00
C51: 兽医/宠物药品 | D51: ¥4.00 | F51: ¥25.00 | P51: =SUM(保健[[#This Row],[1 月]:[12 月]]) -> ¥29.00
C52: 人寿保险 | D52: ¥55.00 | E52: ¥55.00 | F52: ¥55.00 | P52: =SUM(保健[[#This Row],[1 月]:[12 月]]) -> ¥165.00
C53: 汇总 | D53: =SUBTOTAL(109,保健[1 月]) -> ¥460.00 | E53: =SUBTOTAL(109,保健[2 月]) -> ¥432.00 | F53: =SUBTOTAL(109,保健[3 月]) -> ¥505.00 | G53: =SUBTOTAL(109,保健[4 月]) -> ¥0.00 | H53: =SUBTOTAL(109,保健[5 月]) -> ¥0.00 | I53: =SUBTOTAL(109,保健[6 月]) -> ¥0.00 | J53: =SUBTOTAL(109,保健[7 月]) -> ¥0.00 | K53: =SUBTOTAL(109,保健[8 月]) -> ¥0.00 | L53: =SUBTOTAL(109,保健[9 月]) -> ¥0.00 | M53: =SUBTOTAL(109,保健[10 月]) -> ¥0.00 | N53: =SUBTOTAL(109,保健[11 月]) -> ¥0.00 | O53: =SUBTOTAL(109,保健[12 月]) -> ¥0.00 | P53: =SUBTOTAL(109,保健[年份]) -> ¥1,397.00
A55: 从表的单元格 C55 开始输入度假支出。下一条指示位于单元格 A64。 | C55: 度假 | D55: 1 月 | E55: 2 月 | F55: 3 月 | G55: 4 月 | H55: 5 月 | I55: 6 月 | J55: 7 月 | K55: 8 月 | L55: 9 月 | M55: 10 月 | N55: 11 月 | O55: 12 月 | P55: 年份 | Q55: 迷你图
C56: 飞机票 | E56: ¥485.00 | P56: =SUM(度假[[#This Row],[1 月]:[12 月]]) -> ¥485.00
C57: 住宿 | E57: ¥245.00 | P57: =SUM(度假[[#This Row],[1 月]:[12 月]]) -> ¥245.00
C58: 食品 | E58: ¥95.00 | P58: =SUM(度假[[#This Row],[1 月]:[12 月]]) -> ¥95.00
C59: 纪念品 | P59: =SUM(度假[[#This Row],[1 月]:[12 月]]) -> ¥0.00
C60: 宠物寄养 | P60: =SUM(度假[[#This Row],[1 月]:[12 月]]) -> ¥0.00
C61: 汽车租赁 | E61: ¥85.00 | P61: =SUM(度假[[#This Row],[1 月]:[12 月]]) -> ¥85.00
C62: 汇总 | D62: =SUBTOTAL(109,度假[1 月]) -> ¥0.00 | E62: =SUBTOTAL(109,度假[2 月]) -> ¥910.00 | F62: =SUBTOTAL(109,度假[3 月]) -> ¥0.00 | G62: =SUBTOTAL(109,度假[4 月]) -> ¥0.00 | H62: =SUBTOTAL(109,度假[5 月]) -> ¥0.00 | I62: =SUBTOTAL(109,度假[6 月]) -> ¥0.00 | J62: =SUBTOTAL(109,度假[7 月]) -> ¥0.00 | K62: =SUBTOTAL(109,度假[8 月]) -> ¥0.00 | L62: =SUBTOTAL(109,度假[9 月]) -> ¥0.00 | M62: =SUBTOTAL(109,度假[10 月]) -> ¥0.00 | N62: =SUBTOTAL(109,度假[11 月]) -> ¥0.00 | O62: =SUBTOTAL(109,度假[12 月]) -> ¥0.00 | P62: =SUBTOTAL(109,度假[年份]) -> ¥910.00
A64: 从表的单元格 C64 开始输入休闲支出。下一条指示位于单元格 A71 中。 | C64: 休闲 | D64: 1 月 | E64: 2 月 | F64: 3 月 | G64: 4 月 | H64: 5 月 | I64: 6 月 | J64: 7 月 | K64: 8 月 | L64: 9 月 | M64: 10 月 | N64: 11 月 | O64: 12 月 | P64: 年份 | Q64: 迷你图
C65: 体育馆费用 | P65: =SUM(休闲[[#This Row],[1 月]:[12 月]]) -> ¥0.00
C66: 运动设备 | P66: =SUM(休闲[[#This Row],[1 月]:[12 月]]) -> ¥0.00
C67: 团体会费 | P67: =SUM(休闲[[#This Row],[1 月]:[12 月]]) -> ¥0.00
C68: 玩具/儿童用品 | D68: ¥39.00 | E68: ¥33.00 | F68: ¥40.00 | P68: =SUM(休闲[[#This Row],[1 月]:[12 月]]) -> ¥112.00
C69: 汇总 | D69: =SUBTOTAL(109,休闲[1 月]) -> ¥39.00 | E69: =SUBTOTAL(109,休闲[2 月]) -> ¥33.00 | F69: =SUBTOTAL(109,休闲[3 月]) -> ¥40.00 | G69: =SUBTOTAL(109,休闲[4 月]) -> ¥0.00 | H69: =SUBTOTAL(109,休闲[5 月]) -> ¥0.00 | I69: =SUBTOTAL(109,休闲[6 月]) -> ¥0.00 | J69: =SUBTOTAL(109,休闲[7 月]) -> ¥0.00 | K69: =SUBTOTAL(109,休闲[8 月]) -> ¥0.00 | L69: =SUBTOTAL(109,休闲[9 月]) -> ¥0.00 | M69: =SUBTOTAL(109,休闲[10 月]) -> ¥0.00 | N69: =SUBTOTAL(109,休闲[11 月]) -> ¥0.00 | O69: =SUBTOTAL(109,休闲[12 月]) -> ¥0.00 | P69: =SUBTOTAL(109,休闲[年份]) -> ¥112.00
A71: 从会费和订阅表的单元格 C71 开始输入支出。下一条指示位于单元格 A81 中。 | C71: 会费/订阅 | D71: 1 月 | E71: 2 月 | F71: 3 月 | G71: 4 月 | H71: 5 月 | I71: 6 月 | J71: 7 月 | K71: 8 月 | L71: 9 月 | M71: 10 月 | N71: 11 月 | O71: 12 月 | P71: 年份 | Q71: 迷你图
C72: 杂志 | P72: =SUM(会费和订阅[[#This Row],[1 月]:[12 月]]) -> ¥0.00
C73: 报纸 | P73: =SUM(会费和订阅[[#This Row],[1 月]:[12 月]]) -> ¥0.00
C74: Internet 费用 | P74: =SUM(会费和订阅[[#This Row],[1 月]:[12 月]]) -> ¥0.00
C75: 公共广播 | P75: =SUM(会费和订阅[[#This Row],[1 月]:[12 月]]) -> ¥0.00
C76: 公共电视 | P76: =SUM(会费和订阅[[#This Row],[1 月]:[12 月]]) -> ¥0.00
C77: 宗教组织 | D77: ¥29.00 | E77: ¥18.00 | F77: ¥17.00 | P77: =SUM(会费和订阅[[#This Row],[1 月]:[12 月]]) -> ¥64.00
C78: 慈善 | P78: =SUM(会费和订阅[[#This Row],[1 月]:[12 月]]) -> ¥0.00
C79: 汇总 | D79: =SUBTOTAL(109,会费和订阅[1 月]) -> ¥29.00 | E79: =SUBTOTAL(109,会费和订阅[2 月]) -> ¥18.00 | F79: =SUBTOTAL(109,会费和订阅[3 月]) -> ¥17.00 | G79: =SUBTOTAL(109,会费和订阅[4 月]) -> ¥0.00 | H79: =SUBTOTAL(109,会费和订阅[5 月]) -> ¥0.00 | I79: =SUBTOTAL(109,会费和订阅[6 月]) -> ¥0.00 | J79: =SUBTOTAL(109,会费和订阅[7 月]) -> ¥0.00 | K79: =SUBTOTAL(109,会费和订阅[8 月]) -> ¥0.00 | L79: =SUBTOTAL(109,会费和订阅[9 月]) -> ¥0.00 | M79: =SUBTOTAL(109,会费和订阅[10 月]) -> ¥0.00 | N79: =SUBTOTAL(109,会费和订阅[11 月]) -> ¥0.00 | O79: =SUBTOTAL(109,会费和订阅[12 月]) -> ¥0.00 | P79: =SUBTOTAL(109,会费和订阅[年份]) -> ¥64.00
A81: 从表的单元格 C81 开始输入个人支出。下一条指示位于单元格 A89 中。 | C81: 个人 | D81: 1 月 | E81: 2 月 | F81: 3 月 | G81: 4 月 | H81: 5 月 | I81: 6 月 | J81: 7 月 | K81: 8 月 | L81: 9 月 | M81: 10 月 | N81: 11 月 | O81: 12 月 | P81: 年份 | Q81: 迷你图
C82: 服装 | F82: ¥29.00 | P82: =SUM(个人[[#This Row],[1 月]:[12 月]]) -> ¥29.00
C83: 礼品 | E83: ¥35.00 | P83: =SUM(个人[[#This Row],[1 月]:[12 月]]) -> ¥35.00
C84: 沙龙/理发 | D84: ¥25.00 | E84: ¥25.00 | F84: ¥25.00 | P84: =SUM(个人[[#This Row],[1 月]:[12 月]]) -> ¥75.00
C85: 书籍 | P85: =SUM(个人[[#This Row],[1 月]:[12 月]]) -> ¥0.00
C86: 音乐（CD 等） | P86: =SUM(个人[[#This Row],[1 月]:[12 月]]) -> ¥0.00
C87: 汇总 | D87: =SUBTOTAL(109,个人[1 月]) -> ¥25.00 | E87: =SUBTOTAL(109,个人[2 月]) -> ¥60.00 | F87: =SUBTOTAL(109,个人[3 月]) -> ¥54.00 | G87: =SUBTOTAL(109,个人[4 月]) -> ¥0.00 | H87: =SUBTOTAL(109,个人[5 月]) -> ¥0.00 | I87: =SUBTOTAL(109,个人[6 月]) -> ¥0.00 | J87: =SUBTOTAL(109,个人[7 月]) -> ¥0.00 | K87: =SUBTOTAL(109,个人[8 月]) -> ¥0.00 | L87: =SUBTOTAL(109,个人[9 月]) -> ¥0.00 | M87: =SUBTOTAL(109,个人[10 月]) -> ¥0.00 | N87: =SUBTOTAL(109,个人[11 月]) -> ¥0.00 | O87: =SUBTOTAL(109,个人[12 月]) -> ¥0.00 | P87: =SUBTOTAL(109,个人[年份]) -> ¥139.00
A89: 从表的单元格 C89 开始输入债务。下一条指示位于单元格 A97 中。 | C89: 债务 | D89: 1 月 | E89: 2 月 | F89: 3 月 | G89: 4 月 | H89: 5 月 | I89: 6 月 | J89: 7 月 | K89: 8 月 | L89: 9 月 | M89: 10 月 | N89: 11 月 | O89: 12 月 | P89: 年份 | Q89: 迷你图
C90: 长期存款 | D90: ¥25.00 | E90: ¥25.00 | F90: ¥25.00 | P90: =SUM(财务[[#This Row],[1 月]:[12 月]]) -> ¥75.00
C91: 退休金（401k 帐户，罗斯个人退休帐户） | D91: ¥45.00 | E91: ¥45.00 | F91: ¥45.00 | P91: =SUM(财务[[#This Row],[1 月]:[12 月]]) -> ¥135.00
C92: 信用卡付款 | D92: ¥75.00 | E92: ¥75.00 | F92: ¥75.00 | P92: =SUM(财务[[#This Row],[1 月]:[12 月]]) -> ¥225.00
C93: 所得税（附加） | P93: =SUM(财务[[#This Row],[1 月]:[12 月]]) -> ¥0.00
C94: 其他债务 | D94: ¥32.00 | E94: ¥34.00 | F94: ¥1.00 | P94: =SUM(财务[[#This Row],[1 月]:[12 月]]) -> ¥67.00
C95: 汇总 | D95: =SUBTOTAL(109,财务[1 月]) -> ¥177.00 | E95: =SUBTOTAL(109,财务[2 月]) -> ¥179.00 | F95: =SUBTOTAL(109,财务[3 月]) -> ¥146.00 | G95: =SUBTOTAL(109,财务[4 月]) -> ¥0.00 | H95: =SUBTOTAL(109,财务[5 月]) -> ¥0.00 | I95: =SUBTOTAL(109,财务[6 月]) -> ¥0.00 | J95: =SUBTOTAL(109,财务[7 月]) -> ¥0.00 | K95: =SUBTOTAL(109,财务[8 月]) -> ¥0.00 | L95: =SUBTOTAL(109,财务[9 月]) -> ¥0.00 | M95: =SUBTOTAL(109,财务[10 月]) -> ¥0.00 | N95: =SUBTOTAL(109,财务[11 月]) -> ¥0.00 | O95: =SUBTOTAL(109,财务[12 月]) -> ¥0.00 | P95: =SUBTOTAL(109,财务[年份]) -> ¥502.00
A97: 从表的单元格 C97 开始输入杂项支出。下一条指示位于单元格 A105 中。 | C97: 杂项支出 | D97: 1 月 | E97: 2 月 | F97: 3 月 | G97: 4 月 | H97: 5 月 | I97: 6 月 | J97: 7 月 | K97: 8 月 | L97: 9 月 | M97: 10 月 | N97: 11 月 | O97: 12 月 | P97: 年份 | Q97: 迷你图
C98: 其他 | P98: =SUM(杂项[[#This Row],[1 月]:[12 月]]) -> ¥0.00
C99: 其他 | P99: =SUM(杂项[[#This Row],[1 月]:[12 月]]) -> ¥0.00
C100: 其他 | P100: =SUM(杂项[[#This Row],[1 月]:[12 月]]) -> ¥0.00
C101: 其他 | P101: =SUM(杂项[[#This Row],[1 月]:[12 月]]) -> ¥0.00
C102: 其他 | P102: =SUM(杂项[[#This Row],[1 月]:[12 月]]) -> ¥0.00
C103: 汇总 | D103: =SUBTOTAL(109,杂项[1 月]) -> ¥0.00 | E103: =SUBTOTAL(109,杂项[2 月]) -> ¥0.00 | F103: =SUBTOTAL(109,杂项[3 月]) -> ¥0.00 | G103: =SUBTOTAL(109,杂项[4 月]) -> ¥0.00 | H103: =SUBTOTAL(109,杂项[5 月]) -> ¥0.00 | I103: =SUBTOTAL(109,杂项[6 月]) -> ¥0.00 | J103: =SUBTOTAL(109,杂项[7 月]) -> ¥0.00 | K103: =SUBTOTAL(109,杂项[8 月]) -> ¥0.00 | L103: =SUBTOTAL(109,杂项[9 月]) -> ¥0.00 | M103: =SUBTOTAL(109,杂项[10 月]) -> ¥0.00 | N103: =SUBTOTAL(109,杂项[11 月]) -> ¥0.00 | O103: =SUBTOTAL(109,杂项[12 月]) -> ¥0.00 | P103: =SUBTOTAL(109,杂项[年份]) -> ¥0.00
A105: 从表的单元格 C105 开始自动计算总计。将自动计算每个月和全年的总支出以及现金短缺或盈余，并且迷你图会更新。 | C105: 总计 | D105: 1 月 | E105: 2 月 | F105: 3 月 | G105: 4 月 | H105: 5 月 | I105: 6 月 | J105: 7 月 | K105: 8 月 | L105: 9 月 | M105: 10 月 | N105: 11 月 | O105: 12 月 | P105: 年份 | Q105: 迷你图
C106: 总支出 | D106: =SUM(杂项[[#Totals],[1 月]],财务[[#Totals],[1 月]],个人[[#Totals],[1 月]],会费和订阅[[#Totals],[1 月]],休闲[[#Totals],[1 月]],度假[[#Totals],[1 月]],保健[[#Totals],[1 月]],娱乐[[#Totals],[1 月]],交通[[#Totals],[1 月]],日常[[#Totals],[1 月]],家庭[[#Totals],[1 月]]) -> ¥2,687.00 | E106: =SUM(杂项[[#Totals],[2 月]],财务[[#Totals],[2 月]],个人[[#Totals],[2 月]],会费和订阅[[#Totals],[2 月]],休闲[[#Totals],[2 月]],度假[[#Totals],[2 月]],保健[[#Totals],[2 月]],娱乐[[#Totals],[2 月]],交通[[#Totals],[2 月]],日常[[#Totals],[2 月]],家庭[[#Totals],[2 月]]) -> ¥3,429.00 | F106: =SUM(杂项[[#Totals],[3 月]],财务[[#Totals],[3 月]],个人[[#Totals],[3 月]],会费和订阅[[#Totals],[3 月]],休闲[[#Totals],[3 月]],度假[[#Totals],[3 月]],保健[[#Totals],[3 月]],娱乐[[#Totals],[3 月]],交通[[#Totals],[3 月]],日常[[#Totals],[3 月]],家庭[[#Totals],[3 月]]) -> ¥2,718.00 | G106: =SUM(杂项[[#Totals],[4 月]],财务[[#Totals],[4 月]],个人[[#Totals],[4 月]],会费和订阅[[#Totals],[4 月]],休闲[[#Totals],[4 月]],度假[[#Totals],[4 月]],保健[[#Totals],[4 月]],娱乐[[#Totals],[4 月]],交通[[#Totals],[4 月]],日常[[#Totals],[4 月]],家庭[[#Totals],[4 月]]) -> ¥0.00 | H106: =SUM(杂项[[#Totals],[5 月]],财务[[#Totals],[5 月]],个人[[#Totals],[5 月]],会费和订阅[[#Totals],[5 月]],休闲[[#Totals],[5 月]],度假[[#Totals],[5 月]],保健[[#Totals],[5 月]],娱乐[[#Totals],[5 月]],交通[[#Totals],[5 月]],日常[[#Totals],[5 月]],家庭[[#Totals],[5 月]]) -> ¥0.00 | I106: =SUM(杂项[[#Totals],[6 月]],财务[[#Totals],[6 月]],个人[[#Totals],[6 月]],会费和订阅[[#Totals],[6 月]],休闲[[#Totals],[6 月]],度假[[#Totals],[6 月]],保健[[#Totals],[6 月]],娱乐[[#Totals],[6 月]],交通[[#Totals],[6 月]],日常[[#Totals],[6 月]],家庭[[#Totals],[6 月]]) -> ¥0.00 | J106: =SUM(杂项[[#Totals],[7 月]],财务[[#Totals],[7 月]],个人[[#Totals],[7 月]],会费和订阅[[#Totals],[7 月]],休闲[[#Totals],[7 月]],度假[[#Totals],[7 月]],保健[[#Totals],[7 月]],娱乐[[#Totals],[7 月]],交通[[#Totals],[7 月]],日常[[#Totals],[7 月]],家庭[[#Totals],[7 月]]) -> ¥0.00 | K106: =SUM(杂项[[#Totals],[8 月]],财务[[#Totals],[8 月]],个人[[#Totals],[8 月]],会费和订阅[[#Totals],[8 月]],休闲[[#Totals],[8 月]],度假[[#Totals],[8 月]],保健[[#Totals],[8 月]],娱乐[[#Totals],[8 月]],交通[[#Totals],[8 月]],日常[[#Totals],[8 月]],家庭[[#Totals],[8 月]]) -> ¥0.00 | L106: =SUM(杂项[[#Totals],[9 月]],财务[[#Totals],[9 月]],个人[[#Totals],[9 月]],会费和订阅[[#Totals],[9 月]],休闲[[#Totals],[9 月]],度假[[#Totals],[9 月]],保健[[#Totals],[9 月]],娱乐[[#Totals],[9 月]],交通[[#Totals],[9 月]],日常[[#Totals],[9 月]],家庭[[#Totals],[9 月]]) -> ¥0.00 | M106: =SUM(杂项[[#Totals],[10 月]],财务[[#Totals],[10 月]],个人[[#Totals],[10 月]],会费和订阅[[#Totals],[10 月]],休闲[[#Totals],[10 月]],度假[[#Totals],[10 月]],保健[[#Totals],[10 月]],娱乐[[#Totals],[10 月]],交通[[#Totals],[10 月]],日常[[#Totals],[10 月]],家庭[[#Totals],[10 月]]) -> ¥0.00 | N106: =SUM(杂项[[#Totals],[11 月]],财务[[#Totals],[11 月]],个人[[#Totals],[11 月]],会费和订阅[[#Totals],[11 月]],休闲[[#Totals],[11 月]],度假[[#Totals],[11 月]],保健[[#Totals],[11 月]],娱乐[[#Totals],[11 月]],交通[[#Totals],[11 月]],日常[[#Totals],[11 月]],家庭[[#Totals],[11 月]]) -> ¥0.00 | O106: =SUM(杂项[[#Totals],[12 月]],财务[[#Totals],[12 月]],个人[[#Totals],[12 月]],会费和订阅[[#Totals],[12 月]],休闲[[#Totals],[12 月]],度假[[#Totals],[12 月]],保健[[#Totals],[12 月]],娱乐[[#Totals],[12 月]],交通[[#Totals],[12 月]],日常[[#Totals],[12 月]],家庭[[#Totals],[12 月]]) -> ¥0.00 | P106: =SUM(杂项[[#Totals],[年份]],财务[[#Totals],[年份]],个人[[#Totals],[年份]],会费和订阅[[#Totals],[年份]],休闲[[#Totals],[年份]],度假[[#Totals],[年份]],保健[[#Totals],[年份]],娱乐[[#Totals],[年份]],交通[[#Totals],[年份]],日常[[#Totals],[年份]],家庭[[#Totals],[年份]]) -> ¥8,834.00
C107: 现金短缺/盈余 | D107: =收益[[#Totals],[1 月]]-D106 -> ¥1,036.00 | E107: =收益[[#Totals],[2 月]]-E106 -> ¥127.00 | F107: =收益[[#Totals],[3 月]]-F106 -> ¥926.00 | G107: =收益[[#Totals],[4 月]]-G106 -> ¥0.00 | H107: =收益[[#Totals],[5 月]]-H106 -> ¥0.00 | I107: =收益[[#Totals],[6 月]]-I106 -> ¥0.00 | J107: =收益[[#Totals],[7 月]]-J106 -> ¥0.00 | K107: =收益[[#Totals],[8 月]]-K106 -> ¥0.00 | L107: =收益[[#Totals],[9 月]]-L106 -> ¥0.00 | M107: =收益[[#Totals],[10 月]]-M106 -> ¥0.00 | N107: =收益[[#Totals],[11 月]]-N106 -> ¥0.00 | O107: =收益[[#Totals],[12 月]]-O106 -> ¥0.00 | P107: =收益[[#Totals],[年份]]-P106 -> ¥2,089.00
